Cogmind - Beta 14 @@@ ROGUE MODE // 2024.11.23 @ 18:52:49 Player: skye Result: Destroyed by as-19487 with Assembled Blade Performance ------------- Evolutions (0) 0 Regions Visited (2) 400 Robots Destroyed (13) 65 Value Destroyed (268) 268 Prototype IDs (2) 40 Alien Tech Used (0) 0 Bonus (0) 0 TOTAL SCORE: 773 Bonus ------- None Cogmind --------- Core Integrity 0/250 Matter 300/300 Energy 100/100 System Corruption 4% Temperature Cool (0) Movement Core (200) Ox3 Location -10/Mines Parts ------- > --- POWER (1) -------- (None) > --- PROPULSION (2) --- (None) > --- UTILITY (2) ------ Medium Storage Unit > --- WEAPON (2) ------- (None) > --- INVENTORY (10) --- Ion Engine Light Ion Engine Light Treads Disposable Heat Sink High-capacity Matter Pod (200) Signal Interpreter Improved Terrain Scanner ECM Suite Datajack Hammer Peak State ------------ > --- POWER ------------ Ion Engine > --- PROPULSION ------- Light Treads Light Treads > --- UTILITY ---------- Medium Storage Unit Utility Shielding > --- WEAPON ----------- Medium Laser Light Assault Rifle > --- INVENTORY -------- Ion Engine Light Ion Engine Wheel Wheel Disposable Heat Sink Signal Interpreter Targeting Computer Datajack Hammer [Rating: 8] Favorites ----------- Power Ion Engine Engine Ion Engine Propulsion Light Treads Treads Light Treads Leg Aluminum Leg Wheel Wheel Utility Medium Storage Unit Storage Medium Storage Unit Protection Light Armor Plating Weapon Medium Laser Energy Gun Medium Laser Ballistic Gun Light Assault Rifle Build | -11 -10 -10 ------- Run | Yrd Mat Min Slots Evolved . | . . . Power . | . . . Propulsion . | . . . Utility . | . . . Weapon . | . . . Parts Attached 12 | . 10 2 Power 2 | . 1 1 Engine 2 | . 1 1 Core . | . . . Reactor . | . . . Propulsion 5 | . 4 1 Treads 3 | . 3 . Leg 1 | . 1 . Wheel 1 | . . 1 Hover . | . . . Flight . | . . . Utility 3 | . 3 . Device . | . . . Storage 1 | . 1 . Processor . | . . . Hackware . | . . . Protection 2 | . 2 . Artifact . | . . . Weapon 2 | . 2 . Energy Gun . | . . . Energy Cannon . | . . . Ballistic Gun 2 | . 2 . Ballistic Cannon . | . . . Launcher . | . . . Special Weapon . | . . . Impact Weapon . | . . . Slashing Weapon . | . . . Piercing Weapon . | . . . Special Melee Weapon . | . . . Unidentified Prototypes . | . . . Parts Lost 7 | . 1 6 Power 2 | . 1 1 Propulsion 2 | . . 2 Utility 1 | . . 1 Weapon 2 | . . 2 Highest Loss Streak 6 | . 1 6 To Critical Strikes . | . . . Average Slot Usage (%) 96 | . 95 98 Engine 13 | . 12 13 Treads 27 | . 27 27 Storage 14 | . 14 14 Protection 12 | . 11 13 Energy Gun 14 | . 14 13 Ballistic Gun 13 | . 13 13 Peak Build Rating 8 | . 8 8 Average Rating 7 | . 7 7 On Entrance 6 | 6 6 8 Naked Turns . | . . . Heaviest Build 22 | 11 22 22 Greatest Support 40 | 20 40 40 Greatest Overweight (x) 3 | . . 3 Average Overweight (x) . | . . . Largest Inventory Capacity 10 | . 10 10 Average Capacity 9 | . 9 10 Most Carried 10 | . 10 10 Average Carried 8 | . 8 9 Final Capacity 10 | 8 10 10 Final Carried 10 | 6 10 10 Class Distribution -------------------- 100% | Mutant Dominant Class ---------------- Mutant | -10/Materials Mutant | -10/Mines Resources | -11 -10 -10 ----------- Run | Yrd Mat Min Matter Collected 517 | 188 129 200 Remotely . | . . . Salvage Created 428 | . 326 102 Parts 26 | . 17 9 Haulers Intercepted . | . . . Recyclers Shooed 2 | . . 2 Parts Field Recycled . | . . . Retrieved Matter . | . . . Parts Self-Destructed . | . . . Prevented . | . . . Kills | -11 -10 -10 ------- Run | Yrd Mat Min Combat Hostiles Destroyed 7 | . 5 2 Guns 7 | . 5 2 Classes Destroyed 7 | . 5 2 Worker 1 | . 1 . Tunneler 1 | . . 1 Recycler 2 | . 1 1 Operator 1 | . 1 . Watcher 1 | . 1 . Swarmer 2 | . . 2 Grunt 5 | . 5 . Best Kill Streak 2 | . 2 2 Combat Bots Only 2 | . 2 2 Max Kills in Single Turn 1 | . 1 1 Gunslinging . | . . . Exploded . | . . . Melee . | . . . Uniques/NPCs Destroyed . | . . . Combat | -11 -10 -10 -------- Run | Yrd Mat Min Hostile Shots Fired 116 | . 37 79 Missed 31 | . 5 26 Damage Taken 1218 | . 421 797 Core 279 | . 82 197 Absorbed by Shields . | . . . Redirected to Shielding 3 | . 3 . Regen/Repaired (Parts) 128 | . 128 . Core Remaining (%) 100 | 100 . . Volleys Fired 56 | . 46 10 Largest 2 | . 2 2 Hottest 70 | . 70 70 Shots Fired 103 | . 83 20 Gun 103 | . 83 20 Cannon . | . . . Launcher . | . . . Special . | . . . Kinetic 56 | . 46 10 Thermal 47 | . 37 10 Explosive . | . . . Electromagnetic . | . . . Robot Hit Streak 12 | . 12 2 Robot Miss Streak 5 | . 2 5 Penetration Max . | . . . Secondary Targets 1 | . 1 . Max Gunslinging Chain 1 | . 1 . Shots Hit Robots 66 | . 59 7 Core Hits 27 | . 23 4 Critical Kills 1 | . 1 . Critical Parts Destroyed . | . . . Critical Strikes 9 | . 9 . Burn 8 | . 8 . Destroy 1 | . 1 . Melee Attacks . | . . . Impact . | . . . Slashing . | . . . Piercing . | . . . Sneak Attacks . | . . . Combat Hostiles . | . . . Follow-up Attacks . | . . . Damage Inflicted 706 | . 579 127 Guns 694 | . 578 116 Cannons . | . . . Explosions . | . . . Melee . | . . . Ramming 12 | . 1 11 Kinetic 306 | . 252 54 Thermal 388 | . 326 62 Explosive . | . . . Electromagnetic . | . . . Impact . | . . . Slashing . | . . . Piercing . | . . . Highest Corruption 4 | . 4 4 Average Corruption 3 | . 2 4 Corruption Purged . | . . . Corruption Blocked . | . . . Effects 28 | . 14 14 Message Errors 9 | . 5 4 Matter Fused 11 | . 6 5 Energy Discharges 2 | . 1 1 Data Loss (minor) 6 | . 2 4 Overload Shots . | . . . Overflow Damage . | . . . Projectiles . | . . . Explosions . | . . . Melee . | . . . Knockbacks . | . . . Impact . | . . . Kinetic . | . . . Secondary . | . . . Self-Inflicted Damage . | . . . Shots . | . . . Rammed 3 | . 2 1 Targets Rammed 3 | . 2 1 Kicked . | . . . Crushed . | . . . Highest Temperature 342 | . 342 90 Average Temperature 95 | . 114 34 Received Heat Transfer 326 | . 246 80 Siege Activations . | . . . Robots Corrupted . | . . . Combat Hostiles . | . . . Parts Fried . | . . . Impact Corruptions . | . . . Robots Melted . | . . . Combat Hostiles . | . . . Parts Melted 5 | . 5 . Heat Transferred 1739 | . 1554 185 Parts Sabotaged . | . . . Parts Stolen . | . . . Parts Stripped . | . . . Power Chain Reactions . | . . . Alert | -11 -10 -10 ------- Run | Yrd Mat Min Peak Influence 155 | . 155 60 Initial . | . . . Average 22 | . 27 11 Maximum Alert Level . | . . . Low Security (%) 100 | . 100 100 Level 1 . | . . . Level 2 . | . . . Level 3 . | . . . Level 4 . | . . . Level 5 . | . . . High Security . | . . . Max Security . | . . . Squads Dispatched 2 | . 2 . Investigation 1 | . 1 . Extermination . | . . . Reinforcement 1 | . 1 . Assault . | . . . Garrison . | . . . Intercept . | . . . Searches Triggered . | . . . Construction Impeded . | . . . Haulers Reinforced . | . . . Active Scanning Responses . | . . . Cargo Convoy Interrupts . | . . . Stealth | -11 -10 -10 --------- Run | Yrd Mat Min Distress Signals . | . . . Communications Jammed . | . . . Distress Signals . | . . . Times Spotted 32 | . 9 23 Peak Tracking Total 18 | . 3 18 Tactical Retreats . | . . . Traps | -11 -10 -10 ------- Run | Yrd Mat Min Traps Triggered 3 | . 3 . Indirectly . | . . . Trap Hack Attempts . | . . . Triggered . | . . . Disarmed . | . . . Reprogrammed . | . . . Reused . | . . . Traps Extracted . | . . . Installed . | . . . Triggered . | . . . Machines | -11 -10 -10 ---------- Run | Yrd Mat Min Machines Disabled . | . . . Max in Single Turn . | . . . Machines Repaired . | . . . Machines Dismantled . | . . . Machines Sabotaged . | . . . Overloaded Fab Kills . | . . . Hacking | -11 -10 -10 --------- Run | Yrd Mat Min Machines Accessed 7 | . 7 . Terminals 5 | . 5 . Fabricators . | . . . Repair Stations 1 | . 1 . Recycling Units 1 | . 1 . Scanalyzers . | . . . Garrison Access . | . . . Total Hacks 17 | . 17 . Successful 11 | . 11 . Failed 6 | . 6 . Catastrophic . | . . . Database Lockouts . | . . . Manual 14 | . 14 . Terminals 14 | . 14 . Fabricators . | . . . Repair Stations 2 | . 2 . Recycling Units 1 | . 1 . Scanalyzers . | . . . Garrison Access . | . . . Terminal Hacks 3 | . 3 . Prototype ID Bank 1 | . 1 . Terminal Index 1 | . 1 . Alert Level 1 | . 1 . Fabricator Hacks . | . . . Repair Station Hacks 2 | . 2 . Scan Component 1 | . 1 . Repair 1 | . 1 . Recycling Unit Hacks 1 | . 1 . Report Inventory 1 | . 1 . Scanalyzer . | . . . Garrison Access Hacks . | . . . Unauthorized Hacks 5 | . 5 . Terminals 5 | . 5 . Botnet 5 | . 5 . Fabricators . | . . . Repair Stations . | . . . Recycling Units . | . . . Scanalyzers . | . . . Garrison Access . | . . . Data Cores Recovered . | . . . Used . | . . . Hacking Detections 7 | . 7 . Full Trace Events . | . . . Feedback Events . | . . . Feedback Blocked . | . . . Robot Schematics Acquired . | . . . Robots Built . | . . . Authchips . | . . . Time . | . . . Total Robot Build Rating . | . . . Part Schematics Acquired . | . . . Parts Built . | . . . Authchips . | . . . Time . | . . . Total Part Build Rating . | . . . Parts Repaired 1 | . 1 . Time 26 | . 26 . Parts Recycled . | . . . Recycled Matter . | . . . Retrieved Matter . | . . . Retrieved Components . | . . . Parts Scanalyzed . | . . . Part Schematics Acquired . | . . . Parts Damaged . | . . . Bothacking | -11 -10 -10 ------------ Run | Yrd Mat Min Used RIF Installer . | . . . Robots Hacked . | . . . Non-combat . | . . . Combat . | . . . Robot Hacks Applied . | . . . Relay Couplers Released . | . . . Fabnet Peak Effective % . | . . . Robots Rewired . | . . . Allies Hacked . | . . . Hacks Repelled . | . . . Allies | -11 -10 -10 -------- Run | Yrd Mat Min Total Allies 3 | . . 3 Largest Group 3 | . . 3 Highest-Rated Group 40 | . . 40 Highest-Rated Ally 16 | . . 16 Total Orders . | . . . Ally Attacks 2 | . . 2 Total Damage 16 | . . 16 Kills . | . . . Allies Corrupted . | . . . Allies Melted . | . . . Intel | -11 -10 -10 ------- Run | Yrd Mat Min Robot Analysis Total . | . . . Derelict Logs Recovered . | . . . Drone Launches . | . . . Drone Recoveries . | . . . Exploration | -11 -10 -10 ------------- Run | Yrd Mat Min Turns Passed 2032 | . 1378 654 Spaces Moved 1088 | 1 738 349 Core 1 | . . 1 Treads 1055 | . 716 339 Legs 23 | 1 22 . Wheels 9 | . . 9 Hover . | . . . Flight . | . . . Fastest Speed 80 | 120 120 80 Average Speed 158 | 120 158 158 Slowest Speed 200 | 120 160 200 Overloaded Moves . | . . . Propulsion Burnouts . | . . . Robots Hopped . | . . . Cave-ins Triggered . | . . . Exploration Rate (%) 48 | 2 93 49 Regions Visited 2 Branch Regions 1 Pre-discovered Areas . | . . . Known Exits Taken . | . . . Unknown Exits Taken 2 | 1 1 . Scrap Searched 1 | . . 1 Spaces Dug . | . . . Terrain Destroyed . | . . . Melee . | . . . Projectile . | . . . AOE . | . . . Terrain Rammed . | . . . Walls Destroyed . | . . . Machines Disabled . | . . . Actions | -11 -10 -10 --------- Run | Yrd Mat Min Total 1301 | . 870 431 Wait 120 | . 56 64 Move 1086 | . 737 349 Hop . | . . . Pick Up 13 | . 11 2 Fast Attach 2 | . 2 . Attach 1 | . 1 . Detach . | . . . Swap 9 | . 7 2 Drop 11 | . 8 3 Fire 56 | . 46 10 Melee . | . . . Ram . | . . . Kick . | . . . Crush 3 | . 2 1 Escape Stasis . | . . . Rewire . | . . . Trap . | . . . Miscellaneous . | . . . Route ------- -11/Scrapyard -10/Materials (discovered 5 exits: [*Mat x3] / [*Min x2]) -10/Mines (discovered 1 exit: [*Mat]) History --------- Turn | Location | Event 1 | -11/Scrapyard | Discovered new exit (range 0) 1 | -11/Scrapyard | Entered Materials 287 | -10/Materials | Discovered new exit (range 15) 311 | -10/Materials | Build established: Mutant 387 | -10/Materials | Discovered new exit (range 10) 565 | -10/Materials | Discovered new exit (range 14) 933 | -10/Materials | Discovered new exit (range 9) 961 | -10/Materials | Repaired Lgt. Treads 1295 | -10/Materials | Discovered new exit (range 12) 1379 | -10/Materials | Entered Mines 1383 | -10/Mines | Met a Derelict bent on vengeance 1867 | -10/Mines | Discovered new exit (range 8) 1960 | -10/Mines | Assisted by bots powering up and referring to "LRC-V3" 2005 | -10/Mines | Assembled infested the area 2010 | -10/Mines | Assisted by a Guerilla fighting off Assembled 2020 | -10/Mines | Core integrity fell below 50% 2024 | -10/Mines | Core integrity fell below 20% 2033 | -10/Mines | Destroyed by as-19487 with Assembled Blade Last Messages --------------- come on!" 02013_ as-18435 suffers critical hit (Destroy). 02013_ as-18435 destroyed. 02013_ D-53 Grenadier suffers critical hit (Destroy). 02013_ D-53 Grenadier destroyed. 02017_ Lgt. Ion Engine destroyed. 02018_ KS-9Z9(h) destroyed. 02020_ Med. Laser destroyed. 02020_ Lgt. Armor Plating destroyed. 02024_ Assault Rifle destroyed. 02025_ Lgt. Treads destroyed. 02027_ as-72426 destroyed. 02027_ as-48257 destroyed. 02027_ Wheel destroyed. 02029_ as-98603 destroyed. 02029_ as-98751 destroyed. 02029_ as-42637 destroyed. 02029_ as-06745 destroyed. 02031_ as-75207 destroyed. Map ----- +----------------------------------------------------+ | ?????????????????###### ### ##??# #### # | | ????????????????## ## ######???# # | | ????????????????# ##??????###### # | | ????????????????# ##??????????# # | | ????????????????# ## #####??????# # | | ?????????? ###### #### #??????# # | | ??????????# # #??# #### ######## # | | ??????????# #### ####??# | | ??????????# # ##?????############ | | ????????????## ##### ##?????????????##### | | ????????###########???# #??????????????# | | ????????# #??????# #??????????????# | | ????????# ! #??????# #??????????????# | | ????????# ! ###????# #??????????????# | | ????????# !! ##???# #??????????????# | | ????????# !! ##### #??????????????# <" | | ????????# = #??????????????# ! | | ????????### #######??????????????#*% | | ??????????## #???????????????????? | | ???????????##### ##??????????????????# | | ???????????????####????????????????###" !%= | | ???????????????????????????????????# ] # | | ???????????????????????????????????#%! | | ??????????????????????????????????##!! | | ??????????????????########????#### # | | ?????????????????## @## ##??## | | ?????????????????# a #### % | | ?????????????????## % ! | | ??????????????????# % | | ??????????????????# a % # | | ??????????????????## ## | | ???????????????????## % a ## # # ###? | | ????????????????????## # a % #?## ##????? | | ?????????????????????####### % a ???# #?????? | | ???????????????????????????? %% #??# #?????? | | ????????????????????????????%* a ?# ?????? | | ??????????????????????????? =! ?##?????? | | ?????????????????????????? ???????? | | ?????????????????????????? ???????? | | ????????????????????????? ??????? | | ?????????????????????????? ## ???????? | | ??????????????????????????? #??# ????????? | | ??????????????????????????? ????# ?????????? | | ????????????????????????????????????????????? | | ????????????????????????????????????????????? | | ????????????????????????????????????????????? | | ????????????????????????????????????????????? | | ????????????????????????????????????????????? | | ????????????????????????????????????????????? | | ????????????????????????????????????????????? | +----------------------------------------------------+ Best States ------------- Heat Dissipation 25 Energy Generation 10 Energy Capacity 250 Matter Stores 300 Matter Capacity 300 Sight Range 16 Terrain Scan Density 10 Armor Coverage 150 Utility Shielding 33 Evasion (%) 55 Recoil Reduction 2 Item Schematics ----------------- None Robot Schematics ------------------ None Fabricated ------------ Nothing Alien Tech Used ----------------- None Achievements -------------- None Challenges ------------ None Game ------ Seed FrostLaserProcessor Manual? 0 Play Time 00:13:11 Cumulative 57.0 hours Start 2024.11.23 @ 18:42:27 End 2024.11.23 @ 18:52:49 Sessions 1 Manual Loads 0 Difficulty Rogue Special Mode None Game No. 76 Rogue 32 Adventurer 44 Explorer 0 Win Type - Total 0 Types 0/0/0/0/0/0/0/0/0 Lore% 18 Gallery% 44 Achievement% 32 Wizard Run 0 Options --------- Layout 1 ASCII 0 Keyboard 1 Movement Vi Keybinds 0 Fullscreen 1 Font 24/Terminus Map View 50x40 Zoom Use 0% Tactical HUD 1 Map Filters NONE Filters NONE Steam 1 RUN: 14685cd7-b31d-4064-ad30-e839de425850